bitfinex/quotes_SOLUSD_20250712
["timestamp","ask_amount","ask_price","bid_price","bid_amount"]
[1752301519313,0.66,162.83,162.79,9.42433488]
[1752301519491,0.66,162.83,162.8,30.98]
[1752301520480,0.66,162.83,162.8,39.90433488]
[1752301521613,0.66,162.83,162.8,30.98]
[1752301521786,0.66,162.83,162.8,39.90433488]
[1752301521989,7.0948,162.84,162.8,40.40433488]
[1752301522177,7.0948,162.84,162.8,66.40433488]
[1752301525388,7.0948,162.84,162.81,8.92433488]
[1752301525590,0.03,162.84,162.82,30.98]
[1752301526498,0.69,162.84,162.82,30.98]
[1752301527402,0.03,162.84,162.82,30.98]
[1752301527584,0.69,162.84,162.82,30.98]
[1752301529999,0.69,162.84,162.82,39.90433488]
[1752301532380,0.03,162.84,162.82,39.90433488]
[1752301532579,0.03,162.84,162.82,40.40433488]
[1752301532785,0.03,162.84,162.83,8.92433488]
[1752301533090,0.03,162.84,162.83,9.42433488]
[1752301535016,0.03,162.84,162.83,113.58901885]
[1752301536817,0.03,162.84,162.83,96.30433488]
[1752301536988,0.03,162.84,162.83,144.34]
[1752301537392,0.03,162.84,162.83,153.76433488]
[1752301539915,0.03,162.84,162.83,153.26433488]
[1752301540612,0.03,162.84,162.83,65.88433488]
[1752301542390,0.03,162.84,162.83,56.96]
[1752301542597,0.69,162.84,162.83,56.96]
[1752301544403,0.03,162.84,162.83,56.96]
[1752301545704,9.65433488,162.84,162.81,0.06]
[1752301546002,0.7,162.83,162.82,30.96]
[1752301548002,0.03,162.84,162.82,30.96]
[1752301549733,0.73,162.84,162.82,30.96]
[1752301549936,0.7,162.83,162.82,30.96]
[1752301558674,9.62433488,162.83,162.82,30.96]
[1752301560576,0.7,162.83,162.82,30.96]
[1752301562265,9.62433488,162.83,162.82,30.96]
[1752301562469,9.62433488,162.83,162.81,0.06]
[1752301562793,9.62433488,162.82,162.81,0.06]
[1752301578508,43.52495373,162.82,162.81,0.06]
[1752301578810,43.52495373,162.82,162.78,0.06]
[1752301578993,8.92433488,162.79,162.78,0.06]
[1752301579194,17.11593488,162.79,162.78,0.06]
[1752301579496,17.78593488,162.79,162.78,0.06]
[1752301580331,34.57061885,162.79,162.78,0.06]
[1752301580810,42.78468397,162.78,162.77,0.06]
[1752301581011,52.37901885,162.78,162.77,0.06]
[1752301587813,25.70901885,162.76,162.75,0.06]
[1752301588010,82.68901885,162.76,162.75,0.06]
[1752301588313,83.35901885,162.76,162.75,0.06]
[1752301589411,16.78468397,162.75,162.71,0.06]
[1752301589613,8.92433488,162.72,162.71,0.06]
[1752301590051,9.59433488,162.72,162.71,0.06]
[1752301597358,8.92433488,162.72,162.71,0.56]
[1752301599050,8.92433488,162.72,162.71,0.06]
[1752301599961,9.59433488,162.72,162.71,0.06]
[1752301619575,9.63433488,162.72,162.71,0.06]
[1752301630827,26.41901885,162.72,162.71,0.06]
[1752301631000,35.34335373,162.72,162.71,0.06]
[1752301631321,42.78468397,162.7,162.69,0.06]
[1752301631518,60.63335373,162.7,162.69,0.06]
[1752301631923,61.34335373,162.7,162.69,0.06]
[1752301633124,52.41901885,162.7,162.69,0.06]
[1752301635828,61.34335373,162.7,162.69,0.06]
[1752301636517,67.75435373,162.7,162.69,0.06]
[1752301636820,69.40625373,162.7,162.69,0.06]
[1752301637932,100.40625373,162.7,162.69,0.06]
[1752301638536,82.55758397,162.7,162.69,0.06]
[1752301638713,100.40625373,162.7,162.69,0.06]
[1752301642132,16.78468397,162.69,162.67,0.1]
[1752301642311,56.70901885,162.68,162.67,0.1]
[1752301642517,57.36901885,162.68,162.67,0.1]
[1752301644822,8.92433488,162.68,162.67,0.6]
[1752301645345,8.92433488,162.69,162.67,0.6]
[1752301645519,0.66,162.73,162.67,0.6]
[1752301645842,8.92433488,162.71,162.67,0.6]
[1752301646048,8.92433488,162.7,162.67,0.6]
[1752301647740,8.92433488,162.71,162.67,0.6]
[1752301648434,8.92433488,162.71,162.67,31.62]
[1752301648631,8.92433488,162.72,162.68,0.5]
[1752301650341,8.92433488,162.73,162.68,9.42433488]
[1752301650516,8.92433488,162.73,162.69,0.5]
[1752301651448,8.92433488,162.7,162.68,0.5]
[1752301651745,8.92433488,162.71,162.68,0.5]
[1752301652248,8.92433488,162.71,162.69,0.5]
[1752301652743,8.92433488,162.71,162.67,32.1668]
[1752301652944,26.03,162.75,162.7,0.5]
[1752301652945,8.92433488,162.72,162.7,0.5]
[1752301653555,8.92433488,162.72,162.71,0.5]
[1752301653848,0.03,162.75,162.7,9.42433488]
[1752301654054,0.03,162.75,162.71,0.5]
[1752301654358,8.95433488,162.75,162.72,31.02]
[1752301654518,8.95433488,162.75,162.73,0.5]
[1752301656333,8.95433488,162.75,162.74,0.5]
[1752301657355,8.95433488,162.75,162.72,31.02]
[1752301657655,8.95433488,162.75,162.73,0.5]
[1752301658729,8.95433488,162.75,162.74,0.5]
[1752301658935,0.03,162.75,162.74,0.5]
[1752301661257,8.92433488,162.77,162.74,0.5]
[1752301661258,8.92433488,162.77,162.75,18.12]
[1752301661438,8.92433488,162.76,162.75,18.12]
[1752301663446,8.92433488,162.76,162.75,18.62]
[1752301664062,8.92433488,162.76,162.75,18.12]
[1752301664658,8.92433488,162.76,162.75,18.62]
[1752301664856,8.92433488,162.76,162.75,18.12]
[1752301668376,9.64433488,162.76,162.75,18.12]
[1752301677888,8.92433488,162.76,162.75,18.12]
[1752301679079,8.92433488,162.77,162.75,49.7]
[1752301679484,0.03,162.76,162.75,49.7]
[1752301687108,0.03,162.76,162.75,49.2]
[1752301689807,0.03,162.76,162.75,49.7]
[1752301692313,0.03,162.76,162.75,58.62433488]
[1752301695391,0.03,162.76,162.75,49.7]
[1752301695591,0.03,162.76,162.75,58.62433488]
[1752301702318,0.03,162.76,162.75,162.78901885]
[1752301704212,0.03,162.76,162.75,163.28901885]
[1752301706131,0.03,162.76,162.75,170.49844]
[1752301706325,0.03,162.76,162.75,172.99954]
[1752301706644,0.65,162.86,162.8,16.78468397]
[1752301706819,8.2184,162.87,162.83,8.92433488]
[1752301707024,0.65,162.86,162.83,39.94433488]
[1752301707222,8.2184,162.87,162.83,39.94433488]
[1752301707445,0.65,162.86,162.83,39.94433488]
[1752301707746,0.65,162.86,162.83,31.02]
[1752301707945,0.65,162.86,162.83,39.94433488]
[1752301708123,8.2184,162.87,162.83,40.44433488]
[1752301708926,0.65,162.86,162.83,39.94433488]
[1752301709748,0.65,162.86,162.83,31.02]
[1752301710583,16.49273488,162.87,162.8,104.13468397]
[1752301710584,9.60433488,162.84,162.8,87.35]
[1752301710850,9.57433488,162.83,162.81,31.0]
[1752301711049,0.65,162.82,162.81,31.0]
[1752301711751,9.57433488,162.82,162.81,31.0]
[1752301714176,9.57433488,162.82,162.8,49.14]
[1752301714482,9.57433488,162.81,162.8,49.14]
[1752301714661,15.86863488,162.81,162.8,49.14]
[1752301714861,17.49563488,162.81,162.8,49.14]
[1752301715053,17.49563488,162.81,162.8,18.12]
[1752301722885,34.28031885,162.81,162.8,18.12]
[1752301723583,8.5713,162.81,162.8,18.12]
[1752301723789,17.49563488,162.81,162.8,18.12]
[1752301727282,43.20465373,162.81,162.8,18.12]
[1752301727692,43.20465373,162.81,162.8,11.4534]
[1752301727875,43.20465373,162.81,162.8,9.7868]
[1752301731780,74.26465373,162.81,162.8,8.1202]
[1752301733172,16.78468397,162.77,162.75,0.06]
[1752301733383,33.60001885,162.76,162.75,0.06]
[1752301733588,34.25001885,162.76,162.75,0.06]
[1752301733787,34.25001885,162.76,162.68,0.06]
[1752301733788,42.78468397,162.75,162.68,0.06]
[1752301733998,8.92433488,162.69,162.68,0.06]
[1752301734502,9.57433488,162.69,162.68,0.06]
[1752301736212,8.92433488,162.69,162.68,0.06]
[1752301738112,9.57433488,162.69,162.68,0.06]
[1752301740817,9.57433488,162.69,162.63,26.20974441]
[1752301740996,8.92433488,162.67,162.63,8.92433488]
[1752301741604,8.92433488,162.68,162.63,8.92433488]
[1752301742020,8.92433488,162.68,162.63,39.98433488]
[1752301745518,0.65,162.69,162.63,39.98433488]
[1752301745720,8.92433488,162.68,162.63,39.98433488]
[1752301746710,8.92433488,162.69,162.64,8.92433488]
[1752301746915,8.92433488,162.7,162.65,8.92433488]
[1752301749019,0.65,162.71,162.65,8.92433488]
[1752301749215,8.92433488,162.7,162.65,8.92433488]
[1752301749706,9.57433488,162.71,162.66,8.92433488]
[1752301749905,9.57433488,162.71,162.67,31.1]
[1752301751016,0.65,162.74,162.69,8.92433488]
[1752301751204,0.65,162.74,162.7,8.92433488]
[1752301751406,9.57433488,162.75,162.7,8.92433488]
[1752301751615,0.65,162.74,162.71,31.14]
[1752301751910,9.57433488,162.74,162.71,31.14]
[1752301752094,0.65,162.74,162.71,31.14]
[1752301754020,0.68,162.76,162.71,40.06433488]
[1752301754221,9.60433488,162.76,162.71,40.06433488]
[1752301755009,0.68,162.75,162.71,40.06433488]
[1752301755625,9.60433488,162.75,162.71,31.14]
[1752301755927,0.68,162.74,162.71,31.14]
[1752301756123,8.92433488,162.75,162.71,31.14]
[1752301756124,9.60433488,162.75,162.71,31.14]
[1752301756942,8.92433488,162.75,162.71,31.14]
[1752301757232,0.68,162.74,162.71,31.14]
[1752301757435,9.60433488,162.75,162.71,31.14]
[1752301758336,9.60433488,162.77,162.72,8.92433488]
[1752301758926,0.68,162.76,162.72,8.92433488]
[1752301759327,8.92433488,162.77,162.72,8.92433488]
[1752301759511,9.60433488,162.77,162.72,8.92433488]
[1752301759724,0.68,162.77,162.73,8.92433488]
[1752301759925,0.68,162.77,162.74,31.14]
[1752301760130,0.68,162.78,162.74,31.14]
[1752301760336,0.68,162.78,162.74,40.06433488]
[1752301761820,8.92433488,162.79,162.74,40.06433488]
[1752301762216,9.60433488,162.79,162.74,40.06433488]
[1752301764461,0.71,162.81,162.75,8.92433488]
[1752301764665,8.92433488,162.8,162.75,8.92433488]
[1752301765034,9.63433488,162.81,162.76,8.92433488]
[1752301765240,9.63433488,162.81,162.77,31.12]
[1752301770565,0.71,162.81,162.77,40.04433488]
[1752301771242,9.63433488,162.81,162.77,31.12]
[1752301772336,0.71,162.81,162.77,31.12]
[1752301772540,9.63433488,162.81,162.77,31.12]
[1752301772852,0.68,162.8,162.77,31.12]
[1752301775366,9.60433488,162.8,162.77,31.12]
[1752301775674,8.92433488,162.8,162.77,31.12]
[1752301775866,9.60433488,162.8,162.77,31.12]
[1752301776040,0.68,162.8,162.77,31.12]
[1752301776239,0.68,162.79,162.77,31.12]
[1752301776746,0.68,162.78,162.74,8.92433488]
[1752301777059,0.68,162.78,162.75,31.08]
[1752301777554,9.60433488,162.79,162.75,31.08]
[1752301777964,0.68,162.79,162.75,40.00433488]
[1752301781674,9.60433488,162.78,162.75,31.08]
[1752301781879,8.92433488,162.78,162.75,31.08]
[1752301782174,0.68,162.77,162.75,31.08]
[1752301786676,8.92433488,162.76,162.75,31.08]
[1752301786971,9.59433488,162.76,162.73,31.04]
[1752301787175,9.59433488,162.75,162.73,31.04]
[1752301788256,0.67,162.75,162.73,31.04]
[1752301788467,9.59433488,162.76,162.73,31.04]
[1752301788891,0.67,162.75,162.73,31.04]
[1752301797703,0.67,162.77,162.73,31.04]
[1752301797888,0.67,162.77,162.73,39.96433488]
[1752301798595,9.59433488,162.78,162.73,39.96433488]
[1752301798798,9.59433488,162.78,162.74,8.92433488]
[1752301798999,0.67,162.78,162.75,31.04]
[1752301799200,9.59433488,162.78,162.75,31.04]
[1752301799499,9.59433488,162.77,162.75,31.04]
[1752301799704,0.67,162.76,162.75,31.04]
[1752301800585,9.59433488,162.76,162.73,31.04]
[1752301800899,9.59433488,162.75,162.73,31.04]
[1752301801205,9.59433488,162.74,162.73,31.04]
[1752301804190,9.59433488,162.74,162.71,31.04]
[1752301804499,0.67,162.73,162.71,31.04]
[1752301804701,8.92433488,162.74,162.71,31.04]
[1752301804897,0.67,162.73,162.71,31.04]
[1752301809008,7.6543,162.78,162.71,31.04]
[1752301809009,0.67,162.76,162.71,31.04]
[1752301809184,0.67,162.75,162.71,39.96433488]
[1752301809511,0.67,162.74,162.71,31.04]
[1752301809704,0.67,162.73,162.71,31.04]
[1752301810109,0.67,162.74,162.71,31.04]
[1752301810891,9.59433488,162.75,162.71,39.96433488]
[1752301813012,8.92433488,162.75,162.71,39.96433488]
[1752301813221,0.67,162.74,162.71,39.96433488]
[1752301814719,0.67,162.74,162.71,31.04]
[1752301814904,0.7,162.74,162.71,31.04]
[1752301815511,0.03,162.74,162.71,31.04]
[1752301815714,0.03,162.74,162.72,8.92433488]
[1752301816015,0.03,162.74,162.73,31.14]
[1752301818729,9.64433488,162.74,162.73,31.14]
[1752301819436,9.64433488,162.74,162.71,31.14]
[1752301819735,9.61433488,162.73,162.71,31.14]
[1752301820034,0.69,162.72,162.71,31.14]
[1752301820834,8.92433488,162.73,162.71,31.14]
[1752301821036,0.69,162.73,162.71,31.14]
[1752301824750,0.69,162.72,162.71,31.14]
[1752301826245,8.95433488,162.74,162.71,31.14]
[1752301826550,0.69,162.73,162.71,31.14]
[1752301827848,8.95433488,162.74,162.71,31.14]
[1752301828026,0.72,162.74,162.71,31.14]
[1752301829172,0.69,162.73,162.71,31.14]
[1752301831836,8.95433488,162.74,162.71,31.14]
[1752301831837,0.72,162.74,162.71,31.14]
[1752301832049,0.03,162.74,162.71,31.14]
[1752301832866,0.72,162.74,162.71,31.14]
[1752301833365,0.69,162.73,162.71,31.14]
[1752301834067,0.69,162.72,162.71,31.14]
[1752301834764,0.69,162.72,162.66,98.02433488]
[1752301834765,9.61433488,162.72,162.66,98.02433488]
[1752301835069,9.61433488,162.71,162.67,31.1]
[1752301835243,8.92433488,162.71,162.67,31.1]
[1752301835445,0.69,162.7,162.67,31.1]
[1752301836568,9.61433488,162.69,162.67,31.1]
[1752301836950,0.69,162.68,162.67,31.1]
[1752301837865,8.92433488,162.69,162.67,31.1]
[1752301838075,9.61433488,162.69,162.67,31.1]
[1752301838255,8.92433488,162.7,162.67,31.1]
[1752301838456,9.61433488,162.7,162.67,31.1]
[1752301842465,0.69,162.7,162.67,31.1]
[1752301846865,0.68,162.69,162.67,31.1]
[1752301847678,0.68,162.68,162.67,31.1]
[1752301850977,9.60433488,162.68,162.63,26.06]
[1752301851281,9.60433488,162.67,162.64,31.08]
[1752301851467,0.68,162.67,162.64,31.08]
[1752301852178,9.60433488,162.69,162.64,40.00433488]
[1752301853481,9.60433488,162.69,162.64,31.08]
[1752301853683,9.60433488,162.69,162.64,40.00433488]
[1752301853880,0.68,162.7,162.66,8.92433488]
[1752301854071,0.68,162.7,162.67,31.06]
[1752301856190,0.68,162.69,162.67,31.06]
[1752301857178,8.92433488,162.68,162.67,31.06]
[1752301857388,9.60433488,162.68,162.67,31.06]
[1752301858384,0.68,162.68,162.67,31.06]
[1752301858783,0.68,162.68,162.64,8.92433488]
[1752301858985,0.68,162.68,162.65,31.06]
[1752301859585,0.68,162.68,162.64,8.92433488]
[1752301859790,0.68,162.68,162.65,31.06]
[1752301859987,0.68,162.68,162.64,8.92433488]
[1752301860287,9.60433488,162.67,162.63,26.06]
[1752301860486,9.60433488,162.66,162.64,31.06]
[1752301860696,0.68,162.65,162.64,31.06]
[1752301861068,9.60433488,162.68,162.64,31.06]
[1752301861289,8.92433488,162.65,162.64,31.06]
[1752301861489,9.60433488,162.65,162.63,0.06]
[1752301861797,9.60433488,162.64,162.63,0.06]
[1752301862467,8.92433488,162.64,162.63,0.06]
[1752301862699,9.60433488,162.67,162.63,0.06]
[1752301863072,1.6404,162.69,162.64,8.92433488]
[1752301863275,0.03,162.7,162.66,8.92433488]
[1752301863789,0.71,162.7,162.66,8.92433488]
[1752301863985,0.03,162.7,162.67,8.92433488]
[1752301864183,0.03,162.7,162.68,40.00433488]
[1752301864367,0.03,162.7,162.69,8.92433488]
[1752301865593,0.03,162.7,162.68,31.08]
[1752301865775,0.03,162.7,162.69,8.92433488]
[1752301866476,0.03,162.7,162.68,31.08]
[1752301866885,0.71,162.7,162.68,31.08]
[1752301868892,0.03,162.7,162.68,31.08]
[1752301869408,0.03,162.7,162.68,40.00433488]
[1752301870277,0.03,162.7,162.68,31.08]
[1752301870712,0.71,162.7,162.68,31.08]
[1752301872301,0.68,162.69,162.68,31.08]
[1752301873099,0.68,162.69,162.65,8.92433488]
[1752301873100,9.60433488,162.69,162.63,0.06]
[1752301873313,8.92433488,162.67,162.65,31.06]
[1752301873512,9.60433488,162.67,162.65,31.06]
[1752301873706,8.92433488,162.68,162.65,31.06]
[1752301873911,9.63433488,162.7,162.66,8.92433488]
[1752301874212,0.71,162.7,162.67,31.06]
[1752301875610,8.92433488,162.68,162.63,0.06]
[1752301875814,9.59433488,162.67,162.64,31.06]
[1752301875992,0.67,162.66,162.64,31.06]
[1752301876893,9.59433488,162.68,162.64,31.06]
[1752301879495,9.62433488,162.68,162.64,31.06]
[1752301880121,0.67,162.67,162.64,31.06]
[1752301881116,8.92433488,162.66,162.64,31.06]
[1752301881432,0.67,162.66,162.64,31.06]
[1752301881797,9.59433488,162.66,162.64,31.06]
[1752301882008,0.67,162.65,162.64,31.06]
[1752301882405,0.67,162.66,162.64,31.06]
[1752301884017,8.92433488,162.66,162.64,31.06]
[1752301884195,0.67,162.65,162.64,31.06]
[1752301885409,9.59433488,162.65,162.64,31.06]
[1752301886209,9.59433488,162.65,162.63,0.06]
[1752301886405,9.59433488,162.64,162.63,0.06]
[1752301888717,0.67,162.64,162.63,0.06]
[1752301894336,9.59433488,162.64,162.63,0.06]
[1752301894813,0.67,162.64,162.63,0.06]
[1752301895009,0.67,162.66,162.63,0.06]
[1752301895237,0.67,162.66,162.64,31.06]
[1752301895540,0.67,162.65,162.64,31.06]
[1752301896234,9.59433488,162.65,162.63,0.06]
[1752301896419,8.92433488,162.64,162.63,0.06]
[1752301896619,9.59433488,162.64,162.63,0.06]
[1752301897326,9.59433488,162.64,162.61,0.06]
[1752301897630,8.92433488,162.62,162.61,0.06]
[1752301898009,9.59433488,162.62,162.61,0.06]
[1752301898208,26.37901885,162.62,162.61,0.06]
[1752301900717,9.59433488,162.62,162.61,0.06]
[1752301901415,26.67,162.62,162.61,0.06]
[1752301901619,35.59433488,162.62,162.61,0.06]
[1752301904431,0.67,162.62,162.61,0.06]
[1752301904932,8.92433488,162.63,162.61,0.06]
[1752301905243,9.59433488,162.63,162.61,0.06]
[1752301908137,35.62433488,162.64,162.61,0.06]
[1752301908326,8.95433488,162.64,162.61,0.06]
[1752301908632,0.67,162.63,162.61,0.06]
[1752301908953,9.62433488,162.64,162.61,0.06]
[1752301909627,0.67,162.63,162.61,0.06]
[1752301910025,0.67,162.62,162.61,0.06]
[1752301910919,9.59433488,162.62,162.61,0.06]
[1752301911417,0.67,162.62,162.61,0.06]
[1752301912446,9.59433488,162.62,162.61,0.06]
[1752301922460,9.59433488,162.63,162.61,0.06]
[1752301922765,27.6479,162.64,162.61,0.06]
[1752301922766,9.62433488,162.64,162.61,0.06]
[1752301924262,0.03,162.64,162.63,8.92433488]
[1752301924572,0.03,162.64,162.63,8.98433488]
[1752301926975,0.03,162.64,162.63,0.06]
[1752301927159,0.03,162.64,162.63,8.98433488]
[1752301927550,0.03,162.64,162.63,27.40491885]
[1752301928665,0.03,162.64,162.63,116.50491885]
[1752301933268,0.03,162.64,162.63,123.03391885]
[1752301935979,0.03,162.64,162.63,154.07391885]
[1752301936790,0.03,162.64,162.63,161.78334]
[1752301937478,0.03,162.68,162.67,16.78468397]
[1752301937682,0.03,162.68,162.67,56.74901885]
[1752301938175,0.03,162.68,162.67,56.80901885]
[1752301942985,0.03,162.68,162.67,145.90901885]
[1752301945665,0.03,162.68,162.67,56.80901885]
[1752301947585,0.03,162.68,162.67,61.79207637]
[1752301948082,0.03,162.68,162.67,70.71641125]
[1752301948274,0.03,162.68,162.67,72.23251125]
[1752301948870,0.03,162.68,162.67,161.33251125]
[1752301949972,0.03,162.68,162.67,169.04276034]
[1752301950693,0.03,162.7,162.69,42.78468397]
[1752301950894,0.03,162.7,162.69,91.65335373]
[1752301951068,0.03,162.7,162.69,91.71335373]
[1752301952498,0.03,162.7,162.69,94.83304043]
[1752301953084,0.03,162.7,162.69,85.84870555]
[1752301953998,0.03,162.7,162.69,85.90870555]
[1752301954298,0.03,162.7,162.69,94.83304043]
[1752301954894,0.03,162.7,162.69,183.93304043]
[1752301955098,0.03,162.7,162.69,183.87304043]
[1752301955985,0.03,162.7,162.69,174.94870555]
[1752301957504,0.68,162.7,162.69,174.94870555]
[1752301957695,0.68,162.7,162.69,148.94870555]
[1752301958005,0.68,162.7,162.69,145.82901885]
[1752301958213,0.68,162.7,162.69,171.82901885]
[1752301958693,0.03,162.7,162.69,171.82901885]
[1752301959077,0.68,162.7,162.69,171.82901885]
[1752301959288,0.68,162.7,162.69,31.02]
[1752301961383,0.68,162.7,162.69,39.94433488]
[1752301961973,0.03,162.7,162.69,56.72901885]
[1752301962179,0.03,162.7,162.69,56.78901885]
[1752301962395,0.03,162.7,162.69,25.70901885]
[1752301962604,0.03,162.7,162.69,56.72901885]
[1752301963688,0.03,162.7,162.69,145.82901885]
[1752301965297,0.03,162.7,162.69,145.88901885]
[1752301965691,0.03,162.7,162.69,145.82901885]
[1752301966202,0.69,162.7,162.69,171.82901885]
[1752301969688,0.69,162.7,162.69,82.72901885]
[1752301969894,0.03,162.7,162.69,82.72901885]
[1752301971713,0.69,162.7,162.69,82.72901885]
[1752301972717,0.03,162.7,162.69,82.72901885]
[1752301975310,0.03,162.7,162.69,82.78901885]
[1752301975510,0.03,162.7,162.69,171.88901885]
[1752301977114,0.03,162.7,162.69,180.81335373]
[1752301977422,0.03,162.7,162.69,145.88901885]
[1752301977610,0.03,162.7,162.69,154.81335373]
[1752301979830,0.03,162.7,162.69,145.88901885]
[1752301980013,0.03,162.7,162.69,145.82901885]
[1752301980718,0.03,162.7,162.69,145.88901885]
[1752301981017,0.0008632,162.7,162.69,154.81335373]
[1752301982624,0.0008632,162.7,162.69,123.79335373]
[1752301982835,0.0008632,162.7,162.69,114.80901885]
[1752301983006,0.0008632,162.7,162.69,145.82901885]
[1752301983703,0.0008632,162.7,162.69,154.75335373]
[1752301984120,0.0008632,162.7,162.69,145.82901885]
[1752301988204,0.0008632,162.7,162.69,145.88901885]
[1752301988603,0.0008632,162.7,162.69,154.81335373]
[1752301991011,0.69,162.74,162.73,42.78468397]
[1752301991230,0.69,162.74,162.73,82.72901885]
[1752301996737,0.69,162.74,162.73,57.02]
[1752301999236,0.69,162.74,162.73,82.72901885]
[1752302001731,0.03,162.74,162.73,82.72901885]
[1752302005234,0.03,162.74,162.73,171.82901885]
[1752302005235,0.72,162.74,162.73,171.82901885]
[1752302006135,0.72,162.74,162.73,155.04433488]
[1752302006548,0.72,162.74,162.73,171.82901885]
[1752302007855,0.03,162.74,162.73,171.82901885]
[1752302010726,0.03,162.74,162.73,171.88901885]
[1752302011822,0.00054991,162.74,162.73,171.88901885]
[1752302013553,0.00054991,162.74,162.73,171.82901885]
[1752302015149,0.00054991,162.74,162.73,171.88901885]
[1752302019348,0.00054991,162.74,162.73,171.82901885]
[1752302023460,0.69,162.77,162.76,51.70901885]
[1752302023663,0.69,162.77,162.76,82.70901885]
[1752302024767,0.69,162.77,162.76,73.78468397]
[1752302025064,0.69,162.77,162.76,82.70901885]
[1752302027841,0.7,162.79,162.77,16.78468397]
[1752302028148,0.2,162.8,162.78,39.92433488]
[1752302028348,0.2,162.8,162.79,8.92433488]
[1752302029167,0.9,162.8,162.79,8.92433488]
[1752302029677,0.9,162.8,162.78,39.92433488]
[1752302029870,0.7,162.79,162.78,39.92433488]
[1752302036175,0.73,162.79,162.78,8.92433488]
[1752302036375,0.73,162.79,162.78,39.90433488]
[1752302038478,0.73,162.79,162.78,30.98]
[1752302038670,0.73,162.79,162.78,39.90433488]
[1752302040175,0.73,162.79,162.78,56.68901885]
[1752302040478,0.2,162.8,162.79,16.78468397]
[1752302040665,0.2,162.8,162.79,25.76901885]
[1752302041056,0.2,162.8,162.79,25.70901885]
[1752302043564,0.2,162.8,162.79,114.80901885]
[1752302047184,0.2,162.8,162.79,105.88468397]
[1752302047374,0.2,162.8,162.79,114.80901885]
[1752302047784,0.9,162.8,162.79,114.80901885]
[1752302048166,0.9,162.8,162.79,145.78901885]
[1752302048874,0.9,162.8,162.79,136.86468397]
[1752302049187,0.9,162.8,162.79,145.78901885]
[1752302049382,0.9,162.8,162.79,136.86468397]
[1752302049592,0.9,162.8,162.79,56.68901885]
[1752302049972,0.9,162.8,162.79,47.76468397]
[1752302050275,0.9,162.8,162.79,56.68901885]
[1752302050892,0.9,162.8,162.79,30.98]
[1752302054771,0.9,162.8,162.79,39.90433488]
[1752302055176,0.2,162.8,162.79,56.68901885]
[1752302056490,0.86,162.8,162.79,56.68901885]
[1752302057388,0.86,162.8,162.79,39.90433488]
[1752302057774,0.86,162.8,162.79,30.98]
[1752302058275,0.86,162.8,162.79,39.90433488]
[1752302059496,0.86,162.8,162.79,30.98]
[1752302059695,0.86,162.8,162.79,39.90433488]
[1752302059872,0.86,162.8,162.79,56.68901885]
[1752302062196,0.86,162.8,162.79,39.90433488]
[1752302062378,0.86,162.8,162.79,30.98]
[1752302065186,0.86,162.8,162.79,56.68901885]
[1752302066283,0.86,162.8,162.79,47.76468397]
[1752302066493,0.2,162.8,162.79,56.68901885]
[1752302069685,0.86,162.8,162.79,56.68901885]
[1752302070296,0.2,162.8,162.79,56.68901885]
[1752302070986,0.86,162.8,162.79,56.68901885]
[1752302071490,0.2,162.8,162.79,56.68901885]